[Event "Polofinale MCR junioru 2023"]
[Site "Czech Republic"]
[Date "2023.11.11"]
[Round "1.7"]
[White "Bokhnak, Timofey"]
[Black "Babula, Matej"]
[Result "1-0"]
[TimeControl "90 min per 40 moves + 15 min + 30 sec / move from move 1"]
[WhiteFideId "14172976"]
[BlackFideId "398322"]
[WhiteElo "2210"]
[BlackElo "1899"]

1. e4 {[%clk 01:30:54]} {[%emt 00:00:05]} e5 {[%clk 01:30:49]} {[%emt
00:00:12]} 2. Nf3 {[%clk 01:31:18]} {[%emt 00:00:06]} Nc6 {[%clk 01:31:14]}
{[%emt 00:00:05]} 3. Nc3 {[%clk 01:31:43]} {[%emt 00:00:05]} Nf6 {[%clk
01:31:36]} {[%emt 00:00:07]} 4. Bb5 {[%clk 01:32:08]} {[%emt 00:00:05]} Bc5
{[%clk 01:20:52]} {[%emt 00:11:14]} 5. O-O {[%clk 01:30:19]} {[%emt 00:02:19]}
d6 {[%clk 01:19:59]} {[%emt 00:01:23]} 6. d4 {[%clk 01:26:33]} {[%emt
00:04:16]} exd4 {[%clk 01:20:08]} {[%emt 00:00:21]} 7. Nxd4 {[%clk 01:25:01]}
{[%emt 00:02:03]} Bd7 {[%clk 01:17:04]} {[%emt 00:03:34]} 8. Nf5 {[%clk
01:23:17]} {[%emt 00:02:14]} O-O {[%clk 01:11:50]} {[%emt 00:05:44]} 9. Bg5
{[%clk 01:21:28]} {[%emt 00:02:19]} h6 {[%clk 01:08:19]} {[%emt 00:04:00]} 10.
Bh4 {[%clk 01:20:43]} {[%emt 00:01:15]} Kh8 {[%clk 01:03:24]} {[%emt 00:05:25]}
11. Nxh6 {[%clk 01:12:36]} {[%emt 00:08:37]} a6 {[%clk 00:31:07]} {[%emt
00:32:48]} 12. Bxc6 {[%clk 01:09:59]} {[%emt 00:03:06]} bxc6 {[%clk 00:29:56]}
{[%emt 00:01:42]} 13. Nf5 {[%clk 01:08:38]} {[%emt 00:01:50]} Be6 {[%clk
00:24:34]} {[%emt 00:05:52]} 14. Qf3 {[%clk 01:08:19]} {[%emt 00:00:49]} Bxf5
{[%clk 00:19:08]} {[%emt 00:05:56]} 15. Qxf5 {[%clk 01:08:12]} {[%emt
00:00:37]} Bd4 {[%clk 00:18:47]} {[%emt 00:00:51]} 16. Ne2 {[%clk 01:06:45]}
{[%emt 00:01:57]} Bxb2 {[%clk 00:17:34]} {[%emt 00:01:44]} 17. Rab1 {[%clk
01:07:12]} {[%emt 00:00:03]} Rb8 {[%clk 00:17:42]} {[%emt 00:00:21]} 18. c3
{[%clk 01:02:01]} {[%emt 00:05:41]} Qe7 {[%clk 00:16:59]} {[%emt 00:01:13]} 19.
f3 {[%clk 00:46:30]} {[%emt 00:16:01]} Ba3 {[%clk 00:05:52]} {[%emt 00:11:37]}
20. Nd4 {[%clk 00:44:06]} {[%emt 00:02:54]} Bc5 {[%clk 00:05:49]} {[%emt
00:00:33]} 21. Kh1 {[%clk 00:44:24]} {[%emt 00:00:12]} Bxd4 {[%clk 00:05:15]}
{[%emt 00:01:04]} 22. cxd4 {[%clk 00:44:50]} {[%emt 00:00:05]} Rb5 {[%clk
00:05:24]} {[%emt 00:00:20]} 23. Qf4 {[%clk 00:39:05]} {[%emt 00:06:15]} Rfb8
{[%clk 00:05:16]} {[%emt 00:00:39]} 24. Rbc1 {[%clk 00:39:25]} {[%emt
00:00:10]} R5b6 {[%clk 00:04:22]} {[%emt 00:01:24]} 25. e5 {[%clk 00:35:36]}
{[%emt 00:04:19]} dxe5 {[%clk 00:04:04]} {[%emt 00:00:48]} 26. dxe5 {[%clk
00:36:00]} {[%emt 00:00:06]} Nd5 {[%clk 00:04:26]} {[%emt 00:00:07]} 27. Qe4
{[%clk 00:35:44]} {[%emt 00:00:45]} Qe6 {[%clk 00:04:22]} {[%emt 00:00:35]} 28.
a3 {[%clk 00:33:50]} {[%emt 00:02:24]} Rb2 {[%clk 00:03:47]} {[%emt 00:01:05]}
29. Bg3 {[%clk 00:31:44]} {[%emt 00:02:36]} Qh6 {[%clk 00:03:44]} {[%emt
00:00:33]} 30. f4 {[%clk 00:30:28]} {[%emt 00:01:47]} R8b3 {[%clk 00:03:36]}
{[%emt 00:00:37]} 31. Rf3 {[%clk 00:30:57]} {[%emt 00:00:01]} Rxf3 {[%clk
00:03:40]} {[%emt 00:00:27]} 32. Qxf3 {[%clk 00:31:12]} {[%emt 00:00:15]} Qg6
{[%clk 00:03:42]} {[%emt 00:00:28]} 33. f5 {[%clk 00:29:17]} {[%emt 00:02:25]}
Qg5 {[%clk 00:04:01]} {[%emt 00:00:11]} 34. Re1 {[%clk 00:28:36]} {[%emt
00:01:10]} Rc2 {[%clk 00:02:24]} {[%emt 00:02:08]} 35. h4 {[%clk 00:27:52]}
{[%emt 00:01:14]} Qd2 {[%clk 00:02:07]} {[%emt 00:00:47]} 36. e6 {[%clk
00:28:10]} {[%emt 00:00:11]} Rc1 {[%clk 00:02:05]} {[%emt 00:00:33]} 37. Qh5+
{[%clk 00:28:34]} {[%emt 00:00:05]} Kg8 {[%clk 00:02:20]} {[%emt 00:00:16]} 38.
exf7+ {[%clk 00:28:43]} {[%emt 00:00:20]} Kf8 {[%clk 00:02:33]} {[%emt
00:00:17]} 39. Qh8+ {[%clk 00:29:07]} {[%emt 00:00:05]} 1-0

[Event "Polofinale MCR junioru 2023"]
[Site "Czech Republic"]
[Date "2023.11.11"]
[Round "1.8"]
[White "Vylicil, Adam"]
[Black "Winter, Ondrej"]
[Result "1/2-1/2"]
[TimeControl "90 min per 40 moves + 15 min + 30 sec / move from move 1"]
[WhiteFideId "23717556"]
[BlackFideId "23702192"]
[WhiteElo "1896"]
[BlackElo "2163"]

1. d4 {[%clk 01:30:57]} {[%emt 00:00:02]} Nf6 {[%clk 01:30:45]} {[%emt
00:00:15]} 2. c4 {[%clk 01:31:11]} {[%emt 00:00:16]} g6 {[%clk 01:31:03]}
{[%emt 00:00:12]} 3. g3 {[%clk 01:30:04]} {[%emt 00:01:38]} c6 {[%clk
01:30:44]} {[%emt 00:00:49]} 4. Bg2 {[%clk 01:27:44]} {[%emt 00:02:50]} d5
{[%clk 01:30:37]} {[%emt 00:00:37]} 5. Nf3 {[%clk 01:25:37]} {[%emt 00:02:36]}
Bg7 {[%clk 01:29:56]} {[%emt 00:01:12]} 6. O-O {[%clk 01:25:55]} {[%emt
00:00:12]} O-O {[%clk 01:30:21]} {[%emt 00:00:04]} 7. Ne5 {[%clk 01:26:03]}
{[%emt 00:00:22]} Nbd7 {[%clk 01:25:48]} {[%emt 00:05:02]} 8. Nc3 {[%clk
01:19:44]} {[%emt 00:06:50]} e6 {[%clk 01:23:02]} {[%emt 00:03:17]} 9. f4
{[%clk 01:09:02]} {[%emt 00:11:12]} dxc4 {[%clk 01:11:13]} {[%emt 00:12:19]} 10.
Nxc4 {[%clk 01:06:17]} {[%emt 00:03:14]} Nd5 {[%clk 00:46:16]} {[%emt
00:25:28]} 11. e4 {[%clk 00:59:53]} {[%emt 00:06:54]} N7b6 {[%clk 00:35:52]}
{[%emt 00:10:54]} 12. Nxb6 {[%clk 00:38:41]} {[%emt 00:21:42]} Nxb6 {[%clk
00:36:12]} {[%emt 00:00:09]} 13. e5 {[%clk 00:37:25]} {[%emt 00:01:46]} Nd5
{[%clk 00:34:07]} {[%emt 00:02:35]} 14. Ne4 {[%clk 00:32:40]} {[%emt 00:05:15]}
b6 {[%clk 00:33:03]} {[%emt 00:01:34]} 15. Nd6 {[%clk 00:28:21]} {[%emt
00:04:49]} Ba6 {[%clk 00:33:26]} {[%emt 00:00:07]} 16. Rf2 {[%clk 00:27:48]}
{[%emt 00:01:03]} Qd7 {[%clk 00:32:44]} {[%emt 00:01:13]} 17. Qa4 {[%clk
00:26:02]} {[%emt 00:02:16]} Bb5 {[%clk 00:32:53]} {[%emt 00:00:21]} 18. Qb3
{[%clk 00:24:32]} {[%emt 00:02:00]} Ba6 {[%clk 00:29:21]} {[%emt 00:04:02]} 19.
Qa4 {[%clk 00:23:41]} {[%emt 00:01:20]} Bb5 {[%clk 00:23:40]} {[%emt 00:06:11]}
20. Qb3 {[%clk 00:24:00]} {[%emt 00:00:11]} Ba6 {[%clk 00:17:58]} {[%emt
00:06:12]} 1/2-1/2

[Event "Polofinale MCR junioru 2023"]
[Site "Czech Republic"]
[Date "2023.11.11"]
[Round "1.9"]
[White "Vilimek, Vit"]
[Black "Popov, Roman"]
[Result "1-0"]
[TimeControl "90 min per 40 moves + 15 min + 30 sec / move from move 1"]
[WhiteFideId "23718218"]
[BlackFideId "23732580"]
[WhiteElo "2163"]
[BlackElo "1889"]

1. e4 {[%clk 01:30:57]} {[%emt 00:00:03]} c6 {[%clk 01:30:50]} {[%emt
00:00:10]} 2. d4 {[%clk 01:31:22]} {[%emt 00:00:05]} d5 {[%clk 01:31:13]}
{[%emt 00:00:07]} 3. e5 {[%clk 01:31:47]} {[%emt 00:00:04]} c5 {[%clk
01:30:23]} {[%emt 00:01:21]} 4. dxc5 {[%clk 01:32:15]} {[%emt 00:00:03]} e6
{[%clk 01:30:38]} {[%emt 00:00:14]} 5. a3 {[%clk 01:32:36]} {[%emt 00:00:09]}
Bxc5 {[%clk 01:30:56]} {[%emt 00:00:12]} 6. b4 {[%clk 01:32:55]} {[%emt
00:00:12]} Be7 {[%clk 01:31:15]} {[%emt 00:00:10]} 7. Nf3 {[%clk 01:32:25]}
{[%emt 00:01:00]} a5 {[%clk 01:31:12]} {[%emt 00:00:33]} 8. b5 {[%clk
01:32:20]} {[%emt 00:00:35]} Nd7 {[%clk 01:30:46]} {[%emt 00:00:56]} 9. Be2
{[%clk 01:29:12]} {[%emt 00:03:38]} f6 {[%clk 01:26:17]} {[%emt 00:04:58]} 10.
Bb2 {[%clk 01:22:18]} {[%emt 00:07:24]} Qc7 {[%clk 01:03:35]} {[%emt 00:23:12]}
11. c4 {[%clk 01:18:17]} {[%emt 00:04:31]} Nxe5 {[%clk 00:48:29]} {[%emt
00:15:36]} 12. Nxe5 {[%clk 01:15:19]} {[%emt 00:03:29]} fxe5 {[%clk 00:48:01]}
{[%emt 00:00:57]} 13. cxd5 {[%clk 01:14:24]} {[%emt 00:01:25]} Nf6 {[%clk
00:43:24]} {[%emt 00:05:08]} 14. Nc3 {[%clk 01:10:59]} {[%emt 00:03:55]} O-O
{[%clk 00:35:49]} {[%emt 00:08:05]} 15. Rc1 {[%clk 01:08:44]} {[%emt 00:02:45]}
Qd6 {[%clk 00:26:20]} {[%emt 00:09:59]} 16. Bc4 {[%clk 00:58:50]} {[%emt
00:10:23]} exd5 {[%clk 00:18:09]} {[%emt 00:08:42]} 17. Nxd5 {[%clk 00:58:28]}
{[%emt 00:00:52]} Be6 {[%clk 00:16:36]} {[%emt 00:02:03]} 18. Nxf6+ {[%clk
00:55:23]} {[%emt 00:03:35]} Rxf6 {[%clk 00:15:52]} {[%emt 00:01:14]} 19. Qxd6
{[%clk 00:54:35]} {[%emt 00:01:19]} Bxd6 {[%clk 00:16:11]} {[%emt 00:00:10]} 20.
O-O {[%clk 00:54:57]} {[%emt 00:00:07]} Bxc4 {[%clk 00:14:02]} {[%emt
00:02:40]} 21. Rxc4 {[%clk 00:55:25]} {[%emt 00:00:02]} Raf8 {[%clk 00:09:41]}
{[%emt 00:04:50]} 22. f3 {[%clk 00:33:07]} {[%emt 00:22:49]} Rf4 {[%clk
00:01:18]} {[%emt 00:08:53]} 23. Rfc1 {[%clk 00:33:36]} {[%emt 00:00:01]} b6
{[%clk 00:00:55]} {[%emt 00:00:53]} 24. h3 {[%clk 00:23:35]} {[%emt 00:10:31]}
Bc5+ {[%clk 00:00:38]} {[%emt 00:00:47]} 25. Rxc5 {[%clk 00:23:49]} {[%emt
00:00:15]} bxc5 {[%clk 00:00:40]} {[%emt 00:00:28]} 26. Bxe5 {[%clk 00:24:08]}
{[%emt 00:00:11]} R4f5 {[%clk 00:00:33]} {[%emt 00:00:38]} 27. Rxc5 {[%clk
00:24:00]} {[%emt 00:00:38]} Re8 {[%clk 00:00:36]} {[%emt 00:00:27]} 28. f4
{[%clk 00:24:25]} {[%emt 00:00:05]} Rf7 {[%clk 00:00:35]} {[%emt 00:00:30]} 29.
b6 {[%clk 00:23:37]} {[%emt 00:01:18]} Rb7 {[%clk 00:00:46]} {[%emt 00:00:20]}
30. Bc7 {[%clk 00:23:27]} {[%emt 00:00:40]} Ra8 {[%clk 00:00:50]} {[%emt
00:00:26]} 31. Kf2 {[%clk 00:22:52]} {[%emt 00:01:06]} Kf7 {[%clk 00:00:44]}
{[%emt 00:00:35]} 32. Ke3 {[%clk 00:22:41]} {[%emt 00:00:40]} Ke7 {[%clk
00:00:38]} {[%emt 00:00:35]} 33. Kd4 {[%clk 00:23:07]} {[%emt 00:00:04]} Kd7
{[%clk 00:00:34]} {[%emt 00:00:36]} 34. Kc4 {[%clk 00:23:14]} {[%emt 00:00:24]}
a4 {[%clk 00:00:34]} {[%emt 00:00:30]} 35. Kb5 {[%clk 00:23:28]} {[%emt
00:00:13]} g6 {[%clk 00:00:37]} {[%emt 00:00:28]} 36. Rd5+ {[%clk 00:23:52]}
{[%emt 00:00:06]} Ke6 {[%clk 00:00:33]} {[%emt 00:00:34]} 37. Rd6+ {[%clk
00:24:00]} {[%emt 00:00:23]} Ke7 {[%clk 00:00:32]} {[%emt 00:00:30]} 38. Kc6
{[%clk 00:24:22]} {[%emt 00:00:08]} Rxc7+ {[%clk 00:00:34]} {[%emt 00:00:29]}
39. Kxc7 {[%clk 00:24:26]} {[%emt 00:00:27]} Ra5 {[%clk 00:00:40]} {[%emt
00:00:23]} 40. b7 {[%clk 00:24:46]} {[%emt 00:00:10]} Rb5 {[%clk 00:00:41]}
{[%emt 00:00:30]} 41. Rb6 {[%clk 00:25:05]} {[%emt 00:00:10]} Rc5+ {[%clk
00:15:56]} {[%emt 00:00:45]} 42. Rc6 {[%clk 00:41:34]} {[%emt 00:00:01]} 1-0

[Event "Polofinale MCR junioru 2023"]
[Site "Czech Republic"]
[Date "2023.11.11"]
[Round "1.10"]
[White "Fizerova, Lucie"]
[Black "Fizer, Marek"]
[Result "0-1"]
[TimeControl "90 min per 40 moves + 15 min + 30 sec / move from move 1"]
[WhiteFideId "385115"]
[BlackFideId "391980"]
[WhiteElo "1886"]
[BlackElo "2162"]

1. c4 {[%clk 01:30:20]} {[%emt 00:00:39]} e5 {[%clk 01:29:56]} {[%emt
00:01:04]} 2. Nc3 {[%clk 01:30:19]} {[%emt 00:00:31]} Bb4 {[%clk 01:30:18]}
{[%emt 00:00:08]} 3. Nd5 {[%clk 01:29:07]} {[%emt 00:01:42]} Be7 {[%clk
01:30:33]} {[%emt 00:00:15]} 4. g3 {[%clk 01:28:43]} {[%emt 00:00:55]} d6
{[%clk 01:30:32]} {[%emt 00:00:31]} 5. Bg2 {[%clk 01:28:28]} {[%emt 00:00:45]}
Nf6 {[%clk 01:30:33]} {[%emt 00:00:28]} 6. Nxf6+ {[%clk 01:26:32]} {[%emt
00:02:27]} Bxf6 {[%clk 01:29:33]} {[%emt 00:01:30]} 7. d3 {[%clk 01:26:28]}
{[%emt 00:00:33]} Nc6 {[%clk 01:27:29]} {[%emt 00:02:34]} 8. Nf3 {[%clk
01:25:25]} {[%emt 00:01:33]} Be6 {[%clk 01:26:14]} {[%emt 00:01:44]} 9. Rb1
{[%clk 01:22:14]} {[%emt 00:03:42]} a5 {[%clk 01:21:48]} {[%emt 00:04:57]} 10.
a3 {[%clk 01:19:29]} {[%emt 00:03:15]} a4 {[%clk 01:21:35]} {[%emt 00:00:42]}
11. O-O {[%clk 01:17:35]} {[%emt 00:02:24]} O-O {[%clk 01:19:22]} {[%emt
00:02:43]} 12. Be3 {[%clk 01:13:18]} {[%emt 00:04:48]} d5 {[%clk 01:12:13]}
{[%emt 00:07:39]} 13. cxd5 {[%clk 01:11:56]} {[%emt 00:01:52]} Bxd5 {[%clk
01:11:58]} {[%emt 00:00:44]} 14. Qd2 {[%clk 01:05:55]} {[%emt 00:06:32]} Na5
{[%clk 00:56:16]} {[%emt 00:16:12]} 15. h4 {[%clk 00:46:29]} {[%emt 00:19:56]}
Re8 {[%clk 00:48:55]} {[%emt 00:07:51]} 16. Nh2 {[%clk 00:42:23]} {[%emt
00:04:36]} Bxg2 {[%clk 00:46:39]} {[%emt 00:02:46]} 17. Kxg2 {[%clk 00:42:47]}
{[%emt 00:00:06]} Qd5+ {[%clk 00:46:41]} {[%emt 00:00:28]} 18. f3 {[%clk
00:41:30]} {[%emt 00:01:46]} Nb3 {[%clk 00:45:37]} {[%emt 00:01:34]} 19. Qc2
{[%clk 00:39:15]} {[%emt 00:02:46]} Nd4 {[%clk 00:44:11]} {[%emt 00:01:56]} 20.
Qd2 {[%clk 00:37:48]} {[%emt 00:01:57]} Ra6 {[%clk 00:43:24]} {[%emt 00:01:17]}
21. Ng4 {[%clk 00:34:28]} {[%emt 00:03:50]} Bd8 {[%clk 00:41:49]} {[%emt
00:02:03]} 22. Bf2 {[%clk 00:32:36]} {[%emt 00:02:23]} f5 {[%clk 00:39:41]}
{[%emt 00:02:39]} 23. Ne3 {[%clk 00:32:05]} {[%emt 00:01:01]} Qf7 {[%clk
00:39:06]} {[%emt 00:01:04]} 24. Nc4 {[%clk 00:26:52]} {[%emt 00:05:43]} c5
{[%clk 00:33:01]} {[%emt 00:06:35]} 25. Bxd4 {[%clk 00:24:30]} {[%emt
00:02:52]} exd4 {[%clk 00:33:10]} {[%emt 00:00:21]} 26. f4 {[%clk 00:17:43]}
{[%emt 00:07:18]} Qd5+ {[%clk 00:31:29]} {[%emt 00:02:11]} 27. Rf3 {[%clk
00:15:20]} {[%emt 00:02:53]} Rae6 {[%clk 00:30:22]} {[%emt 00:01:37]} 28. Re1
{[%clk 00:14:09]} {[%emt 00:01:40]} Bc7 {[%clk 00:28:22]} {[%emt 00:02:29]} 29.
Qd1 {[%clk 00:12:59]} {[%emt 00:01:41]} b5 {[%clk 00:28:07]} {[%emt 00:00:45]}
30. Nd2 {[%clk 00:13:18]} {[%emt 00:00:12]} Ba5 {[%clk 00:27:57]} {[%emt
00:00:40]} 31. Kf2 {[%clk 00:11:53]} {[%emt 00:01:55]} Re3 {[%clk 00:26:50]}
{[%emt 00:01:37]} 32. Rf1 {[%clk 00:08:44]} {[%emt 00:03:39]} Qe6 {[%clk
00:26:45]} {[%emt 00:00:35]} 33. Re1 {[%clk 00:08:43]} {[%emt 00:00:30]} Rxf3+
{[%clk 00:26:33]} {[%emt 00:00:43]} 34. exf3 {[%clk 00:07:40]} {[%emt
00:01:32]} Qe3+ {[%clk 00:26:50]} {[%emt 00:00:13]} 35. Rxe3 {[%clk 00:07:02]}
{[%emt 00:01:09]} dxe3+ {[%clk 00:27:14]} {[%emt 00:00:05]} 0-1

[Event "Polofinale MCR junioru 2023"]
[Site "Czech Republic"]
[Date "2023.11.11"]
[Round "1.11"]
[White "Skypala, Ondrej"]
[Black "Rucabado, Stefan"]
[Result "1-0"]
[TimeControl "90 min per 40 moves + 15 min + 30 sec / move from move 1"]
[WhiteFideId "366285"]
[BlackFideId "23730315"]
[WhiteElo "2159"]
[BlackElo "1873"]

1. c4 {[%clk 01:29:25]} {[%emt 00:01:26]} c5 {[%clk 01:29:04]} {[%emt
00:02:04]} 2. g3 {[%clk 01:29:45]} {[%emt 00:00:09]} Nc6 {[%clk 01:27:55]}
{[%emt 00:01:40]} 3. Bg2 {[%clk 01:30:11]} {[%emt 00:00:04]} e6 {[%clk
01:28:20]} {[%emt 00:00:06]} 4. Nf3 {[%clk 01:30:37]} {[%emt 00:00:03]} Nge7
{[%clk 01:28:27]} {[%emt 00:00:24]} 5. O-O {[%clk 01:30:52]} {[%emt 00:00:15]}
g6 {[%clk 01:28:52]} {[%emt 00:00:04]} 6. d4 {[%clk 01:30:02]} {[%emt
00:01:21]} cxd4 {[%clk 01:29:14]} {[%emt 00:00:07]} 7. Nxd4 {[%clk 01:30:27]}
{[%emt 00:00:05]} a6 {[%clk 01:26:35]} {[%emt 00:03:10]} 8. Nc3 {[%clk
01:12:04]} {[%emt 00:18:49]} Bg7 {[%clk 01:27:00]} {[%emt 00:00:08]} 9. Be3
{[%clk 01:12:04]} {[%emt 00:00:30]} O-O {[%clk 01:25:33]} {[%emt 00:01:56]} 10.
Qd2 {[%clk 01:11:29]} {[%emt 00:01:06]} Qc7 {[%clk 00:58:40]} {[%emt 00:27:23]}
11. b3 {[%clk 01:05:25]} {[%emt 00:06:35]} Rd8 {[%clk 00:50:36]} {[%emt
00:08:33]} 12. Rac1 {[%clk 01:04:45]} {[%emt 00:01:09]} d6 {[%clk 00:47:02]}
{[%emt 00:04:04]} 13. Nd5 {[%clk 00:55:12]} {[%emt 00:10:04]} exd5 {[%clk
00:20:24]} {[%emt 00:27:08]} 14. cxd5 {[%clk 00:53:55]} {[%emt 00:01:47]} Bd7
{[%clk 00:18:15]} {[%emt 00:02:38]} 15. dxc6 {[%clk 00:54:13]} {[%emt
00:00:12]} Nxc6 {[%clk 00:18:38]} {[%emt 00:00:08]} 16. Nc2 {[%clk 00:48:59]}
{[%emt 00:05:44]} Rac8 {[%clk 00:10:40]} {[%emt 00:08:28]} 17. Nb4 {[%clk
00:48:12]} {[%emt 00:01:17]} Be8 {[%clk 00:04:24]} {[%emt 00:06:46]} 18. Nd5
{[%clk 00:48:00]} {[%emt 00:00:42]} Qb8 {[%clk 00:04:31]} {[%emt 00:00:21]} 19.
Bg5 {[%clk 00:48:12]} {[%emt 00:00:20]} Kh8 {[%clk 00:02:52]} {[%emt 00:02:08]}
20. Bf6 {[%clk 00:47:02]} {[%emt 00:01:41]} b5 {[%clk 00:01:07]} {[%emt
00:02:13]} 21. Qh6 {[%clk 00:47:28]} {[%emt 00:00:06]} 1-0